bitfinex/quotes_SOLUSD_20240729
["timestamp","ask_amount","ask_price","bid_price","bid_amount"]
[1722269179989,5.3291,187.65,187.59,1.06594051]
[1722269180302,5.3291,187.65,187.58,13.3272]
[1722269180493,27.07,187.68,187.57,15.8868]
[1722269180801,0.34,187.67,187.57,15.8868]
[1722269181003,5.3296,187.64,187.57,15.8868]
[1722269181409,5.3299,187.62,187.57,15.8868]
[1722269181578,5.3296,187.63,187.57,15.8868]
[1722269182010,5.3299,187.62,187.57,15.8868]
[1722269182715,5.3302,187.61,187.57,15.8868]
[1722269182886,5.3302,187.61,187.53,21.9206]
[1722269183282,5.3308,187.59,187.53,16.5882]
[1722269183686,5.3316,187.56,187.49,21.9218]
[1722269183987,5.3318,187.56,187.49,16.5882]
[1722269184182,5.3318,187.56,187.5,1.06651065]
[1722269184389,5.3319,187.55,187.49,16.5882]
[1722269184589,0.17,187.54,187.44,16.5882]
[1722269184791,5.3338,187.49,187.44,16.5882]
[1722269185008,59.14,187.53,187.44,16.5882]
[1722269185009,0.17,187.5,187.44,16.5882]
[1722269185213,5.3336,187.49,187.44,16.5882]
[1722269185791,27.24,187.5,187.4,21.3753]
[1722269185987,5.3353,187.44,187.4,16.0392]
[1722269186288,5.3358,187.42,187.36,16.0392]
[1722269187292,5.5055,187.43,187.36,16.0392]
[1722269187813,0.17,187.43,187.36,21.3764]
[1722269188114,5.3349,187.45,187.37,6.40417683]
[1722269188115,5.3347,187.45,187.37,6.40417683]
[1722269188292,0.17,187.44,187.36,16.0392]
[1722269188611,5.3356,187.42,187.36,16.0392]
[1722269188989,0.17,187.44,187.36,16.0392]
[1722269188990,5.3353,187.43,187.36,16.0392]
[1722269189215,5.505,187.44,187.36,21.3765]
[1722269189718,22.08343461,187.49,187.38,5.3366]
[1722269189892,0.34,187.48,187.38,5.3366]
[1722269190092,0.34,187.48,187.39,5.3362]
[1722269190299,5.3348,187.45,187.38,13.3416]
[1722269190809,5.335,187.44,187.36,21.3764]
[1722269191012,5.335,187.44,187.37,5.337]
[1722269191190,54.15343461,187.49,187.37,5.337]
[1722269191191,5.3347,187.45,187.37,5.337]
[1722269191393,5.3347,187.45,187.38,5.3367]
[1722269191588,5.3347,187.45,187.38,6.40386241]
[1722269191788,5.3347,187.45,187.37,13.3422]
[1722269192314,5.3344,187.47,187.38,45.0]
[1722269193092,0.17,187.48,187.38,45.0]
[1722269193398,5.3336,187.49,187.41,5.3358]
[1722269193835,5.3339,187.48,187.4,18.6765]
[1722269194204,5.3339,187.48,187.41,5.3358]
[1722269194425,66.66540509,187.56,187.43,5.3352]
[1722269194615,5.3337,187.49,187.41,5.3357]
[1722269194835,5.3333,187.5,187.42,50.3355]
[1722269195732,5.333,187.51,187.43,5.3352]
[1722269196032,5.333,187.51,187.44,6.40180158]
[1722269196232,5.55408149,187.56,187.46,13.3355]
[1722269196533,380.7,187.57,187.46,13.3355]
[1722269196534,380.7,187.57,187.47,6.40064058]
[1722269196829,5.3322,187.54,187.46,18.6699]
[1722269197030,5.3322,187.54,187.47,45.0]
[1722269197233,380.7,187.57,187.47,50.3341]
[1722269197409,6.3122,187.59,187.49,13.334]
[1722269197613,5.3313,187.57,187.5,5.3333]
[1722269197825,5.3317,187.56,187.49,13.334]
[1722269198128,5.3323,187.54,187.47,45.0]
[1722269198332,5.3325,187.53,187.46,45.0]
[1722269198635,5.3325,187.53,187.46,50.3343]
[1722269198805,51.7097,187.59,187.46,45.0]
[1722269199011,0.34,187.58,187.46,45.0]
[1722269199626,5.3332,187.51,187.45,15.7259]
[1722269199836,30.52,187.57,187.45,29.0623]
[1722269200015,0.17,187.56,187.49,5.3333]
[1722269200324,6.3122,187.59,187.48,13.3346]
[1722269200325,11.6432,187.59,187.48,13.3346]
[1722269200530,5.331,187.59,187.51,5.3328]
[1722269200720,5.3305,187.6,187.52,5.3327]
[1722269200920,5.33,187.62,187.55,5.3319]
[1722269201230,5.3299,187.62,187.53,15.9386]
[1722269201533,5.3299,187.62,187.54,50.3321]
[1722269202249,5.3302,187.61,187.54,50.3321]
[1722269203213,5.3298,187.63,187.55,5.3317]
[1722269203412,5.3293,187.65,187.54,46.06611788]
[1722269203624,6.4557,187.68,187.54,46.06611788]
[1722269203625,5.3285,187.67,187.59,18.6575]
[1722269204417,5.3288,187.66,187.59,18.6575]
[1722269204615,11.7841,187.68,187.59,13.3269]
[1722269204815,5.3281,187.69,187.61,5.3299]
[1722269205021,5.3281,187.69,187.59,13.3269]
[1722269205217,5.3283,187.68,187.59,18.6576]
[1722269205427,5.3285,187.67,187.59,18.6576]
[1722269206125,5.3285,187.67,187.6,5.3304]
[1722269206332,5.3282,187.68,187.6,5.3304]
[1722269206527,5.3286,187.67,187.6,5.3304]
[1722269206914,5.3286,187.67,187.59,13.3269]
[1722269207109,0.17,187.69,187.59,13.3269]
[1722269207314,5.3285,187.67,187.59,18.6576]
[1722269207929,5.3285,187.67,187.6,5.3304]
[1722269208237,5.3291,187.65,187.58,5.331]
[1722269208440,5.499,187.66,187.57,5.3312]
[1722269208616,5.4988,187.66,187.58,5.331]
[1722269209028,0.17,187.66,187.58,13.327]
[1722269209336,5.6685,187.67,187.59,1.06604905]
[1722269209518,0.17,187.66,187.59,1.06604905]
[1722269209855,5.4988,187.66,187.59,6.39674905]
[1722269210138,0.17,187.66,187.6,5.3304]
[1722269210438,0.17,187.66,187.58,13.327]
[1722269210639,0.17,187.66,187.59,5.3307]
[1722269210845,5.4988,187.66,187.59,5.3307]
[1722269211016,5.4988,187.66,187.58,18.6579]
[1722269211213,0.17,187.66,187.6,5.3304]
[1722269211620,0.17,187.66,187.59,1.06596832]
[1722269212124,5.4989,187.66,187.59,6.39656832]
[1722269212321,0.17,187.66,187.6,14.39158087]
[1722269212524,8.11138709,187.72,187.6,13.3256]
[1722269212734,5.3284,187.68,187.6,18.6558]
[1722269212949,8.11138709,187.72,187.6,13.3256]
[1722269213828,5.3276,187.7,187.63,5.3296]
[1722269214031,5.3276,187.7,187.6,13.3256]
[1722269214236,5.3276,187.7,187.61,45.0]
[1722269214433,6.0464,187.72,187.61,45.0]
[1722269214747,5.3276,187.7,187.62,5.3298]
[1722269215821,5.3279,187.69,187.62,5.3298]
[1722269216542,5.3279,187.69,187.61,5.3301]
[1722269216743,5.3276,187.7,187.62,5.3298]
[1722269216924,0.17,187.69,187.62,5.3298]
[1722269217338,5.498,187.69,187.62,5.3298]
[1722269217645,5.498,187.69,187.61,5.3301]
[1722269217953,0.17,187.69,187.62,5.3298]
[1722269218639,5.498,187.69,187.61,5.3299]
[1722269219535,5.498,187.69,187.62,5.3298]
[1722269220351,5.3291,187.65,187.53,42.9886]
[1722269220652,5.3293,187.65,187.57,5.3313]
[1722269220833,5.4983,187.68,187.61,13.3248]
[1722269221033,27.22,187.69,187.54,1.06589382]
[1722269221230,5.3284,187.68,187.6,5.3304]
[1722269221738,32.548,187.69,187.6,13.3256]
[1722269222050,5.3282,187.68,187.61,5.3301]
[1722269222929,0.17,187.67,187.6,18.656]
[1722269223243,0.17,187.67,187.61,5.3301]
[1722269223440,0.17,187.7,187.63,5.3296]
[1722269223636,0.17,187.71,187.63,5.3296]
[1722269223845,0.34,187.71,187.63,5.3296]
[1722269224145,5.3279,187.7,187.62,5.3299]
[1722269224358,0.17,187.69,187.63,5.3296]
[1722269224521,0.17,187.69,187.6,13.3256]
[1722269225155,5.498,187.69,187.61,5.33]
[1722269225660,27.05,187.68,187.53,15.9386]
[1722269225831,5.329,187.66,187.53,15.9386]
[1722269226150,0.17,187.65,187.59,5.3307]
[1722269226358,5.6685,187.67,187.6,5.3304]
[1722269226528,5.4985,187.67,187.59,5.3307]
[1722269226867,0.17,187.67,187.58,13.3276]
[1722269227156,0.17,187.67,187.54,20.0]
[1722269227157,0.17,187.67,187.61,18.6553]
[1722269227452,0.17,187.67,187.61,13.3253]
[1722269227657,5.4985,187.67,187.61,13.3253]
[1722269227861,5.4985,187.67,187.59,5.3307]
[1722269228155,27.05,187.71,187.57,1.06595316]
[1722269228455,27.05,187.71,187.62,5.3298]
[1722269228657,32.3776,187.71,187.63,5.3296]
[1722269229526,5.3277,187.7,187.62,5.3298]
[1722269230054,27.05,187.71,187.61,13.3249]
[1722269230235,0.34,187.7,187.61,13.3249]
[1722269230738,5.328,187.69,187.62,5.3298]
[1722269230941,5.4982,187.68,187.61,18.655]
[1722269231242,0.17,187.68,187.59,5.3307]
[1722269231549,27.22,187.68,187.58,13.3274]
[1722269231746,5.3293,187.65,187.58,18.6583]
[1722269231940,5.3285,187.67,187.58,13.3274]
[1722269232249,0.17,187.66,187.58,13.3274]
[1722269232639,0.17,187.66,187.59,5.3307]
[1722269232932,5.3291,187.65,187.58,18.6584]
[1722269233157,5.3291,187.65,187.53,15.9386]
[1722269233158,6.2088,187.64,187.54,13.3299]
[1722269233343,5.3298,187.63,187.55,6.39804814]
[1722269233550,0.34,187.62,187.55,6.39804814]
[1722269233851,5.67,187.62,187.55,6.39804814]
[1722269234036,5.67,187.62,187.55,1.06624814]
[1722269234367,5.3308,187.59,187.53,15.9386]
[1722269234537,0.34,187.62,187.53,15.9386]
[1722269234895,5.3308,187.59,187.53,15.9386]
[1722269235359,5.3305,187.6,187.53,15.9386]
[1722269235549,0.17,187.59,187.53,15.9386]
[1722269235872,5.3316,187.56,187.49,16.5753]
[1722269236031,27.05,187.56,187.49,16.5753]
[1722269237855,11.4238,187.56,187.49,1.06652803]
[1722269238369,5.3319,187.55,187.48,5.3337]
[1722269238539,5.3325,187.53,187.44,21.91]
[1722269238749,6.0922,187.56,187.44,21.91]
[1722269238750,33.1422,187.56,187.44,16.5753]
[1722269238955,0.34,187.55,187.44,16.5753]
[1722269239579,5.3332,187.51,187.44,16.5753]
[1722269240453,5.3332,187.51,187.45,1.06680223]
[1722269240884,5.3333,187.5,187.45,1.06680223]
[1722269241055,0.17,187.52,187.44,16.5753]
[1722269241247,5.3341,187.47,187.39,29.2036]
[1722269241453,27.05,187.5,187.4,5.336]
[1722269241680,0.17,187.49,187.4,5.336]
[1722269242258,5.5036,187.49,187.39,29.2036]
[1722269242475,0.17,187.49,187.42,5.3355]
[1722269242689,5.3331,187.51,187.42,13.3388]
[1722269243175,5.3331,187.51,187.43,5.335]
[1722269243473,5.3334,187.5,187.43,5.335]
[1722269244282,67.37242458,187.56,187.45,13.3368]
[1722269244582,67.37242458,187.56,187.41,20.0]
[1722269244583,5.3332,187.51,187.43,5.335]
[1722269244761,5.3334,187.5,187.43,5.335]
[1722269244967,27.05,187.53,187.41,13.3391]
[1722269245284,27.05,187.53,187.42,45.0]
[1722269245586,40.3819,187.53,187.41,13.3391]
[1722269245877,5.3339,187.48,187.41,13.3391]
[1722269247085,5.3344,187.46,187.39,15.8631]
[1722269247391,27.05,187.5,187.39,15.8631]
[1722269247392,5.335,187.45,187.39,15.8631]
[1722269247959,5.3345,187.46,187.4,1.06708692]
[1722269248889,0.17,187.47,187.39,15.8631]
[1722269248890,0.17,187.45,187.39,15.8631]
[1722269249055,27.39,187.47,187.39,15.8631]
[1722269249258,5.335,187.44,187.39,15.8631]
[1722269249562,5.3348,187.45,187.39,15.8631]
[1722269250689,0.34,187.47,187.4,13.3403]
[1722269250884,0.17,187.47,187.4,14.40747735]
[1722269251183,0.17,187.47,187.4,13.3403]
[1722269251383,5.5042,187.47,187.4,18.6764]
[1722269251686,5.5042,187.47,187.4,13.3403]
[1722269252059,0.17,187.47,187.4,13.3403]
[1722269252259,0.17,187.47,187.4,18.6764]
[1722269252482,5.5043,187.47,187.4,13.3403]
[1722269253461,0.17,187.47,187.39,15.8631]
[1722269253859,5.3349,187.45,187.39,15.8631]
[1722269254175,5.6741,187.47,187.39,15.8631]
[1722269254374,5.5041,187.47,187.39,22.26658568]
[1722269254583,5.5041,187.47,187.4,5.3361]
[1722269254970,38.0894,187.53,187.41,13.3395]
[1722269255169,5.3335,187.5,187.42,5.3353]
[1722269255699,5.3336,187.49,187.42,5.3353]
[1722269255997,67.2968099,187.53,187.43,13.3376]
[1722269256168,67.2968099,187.53,187.43,18.6728]
[1722269256367,5.3333,187.5,187.43,13.3376]
[1722269256867,5.333,187.51,187.43,13.3376]
[1722269257070,43.4218,187.53,187.44,1.06682328]
[1722269257273,27.05,187.56,187.46,13.336]
[1722269257274,5.3321,187.55,187.46,13.336]
[1722269257473,32.3816,187.56,187.48,5.3338]
[1722269257865,27.05,187.56,187.5,5.3332]
[1722269258101,6.3708,187.58,187.5,5.3332]
[1722269258389,5.3314,187.57,187.49,18.6674]
[1722269258700,5.3317,187.56,187.49,18.6674]
[1722269258996,5.3317,187.56,187.49,13.3339]
[1722269259386,6.3708,187.58,187.47,15.4747]
[1722269259591,27.05,187.56,187.47,15.4747]
[1722269259787,5.3327,187.52,187.47,15.4747]
[1722269259989,5.333,187.51,187.47,15.4747]
[1722269260477,5.3327,187.52,187.47,15.4747]
[1722269260685,5.3325,187.53,187.47,15.4747]
[1722269260878,0.17,187.54,187.47,15.4747]
[1722269261081,32.3816,187.56,187.48,5.3338]
[1722269261280,11.7021,187.58,187.51,5.3329]
[1722269261476,5.6713,187.57,187.5,5.3332]
[1722269261682,11.7018,187.58,187.5,18.6663]
[1722269261986,5.331,187.58,187.5,18.6663]
[1722269262795,5.3313,187.57,187.5,13.3331]
[1722269263004,42.48770052,187.59,187.47,15.4747]
[1722269263173,5.3322,187.54,187.47,15.4747]
[1722269263489,0.17,187.55,187.47,15.4747]
[1722269263696,5.3324,187.54,187.47,15.4747]
[1722269265370,5.3324,187.54,187.47,20.8087]
[1722269266788,0.17,187.55,187.48,5.3338]
[1722269267191,0.17,187.55,187.47,15.4747]
[1722269267192,0.17,187.55,187.49,5.3334]
[1722269267390,0.17,187.58,187.5,5.3332]
[1722269267391,5.3313,187.57,187.5,5.3332]
[1722269267579,0.17,187.56,187.5,5.3332]
[1722269268993,5.5016,187.56,187.49,5.3336]
[1722269269476,5.5016,187.56,187.47,15.4747]
[1722269269477,5.3324,187.54,187.47,15.4747]
[1722269269677,0.17,187.56,187.48,5.3338]
[1722269269678,27.22,187.56,187.48,5.3338]
[1722269269902,5.3321,187.55,187.47,20.8088]
[1722269270067,5.5022,187.54,187.47,20.8088]
[1722269270274,5.3322,187.54,187.47,20.8088]
[1722269270475,0.17,187.55,187.47,15.4747]
[1722269271204,5.3326,187.53,187.47,15.4747]
[1722269271386,0.17,187.52,187.47,15.4747]
[1722269272191,5.5024,187.53,187.47,15.4747]
[1722269273111,0.17,187.53,187.47,15.4747]
[1722269274699,0.17,187.55,187.47,20.8086]
[1722269274700,5.3322,187.54,187.47,20.8086]
[1722269275201,5.3322,187.54,187.47,15.4747]
[1722269275501,5.3325,187.53,187.47,15.4747]
[1722269276379,0.34,187.55,187.47,15.4747]
[1722269276588,27.05,187.53,187.43,5.3351]
[1722269276910,27.05,187.53,187.42,34.8906]
[1722269276911,0.34,187.52,187.42,34.8906]
[1722269277098,5.3339,187.49,187.42,34.8906]
[1722269277483,5.3339,187.49,187.42,41.29303778]
[1722269277684,5.3339,187.49,187.42,40.2261]
[1722269279383,5.3339,187.49,187.42,34.8906]
[1722269279797,5.3339,187.48,187.42,28.429]
[1722269281406,5.3342,187.47,187.42,15.0902]
[1722269281916,27.22,187.5,187.42,15.0902]
[1722269281917,5.3351,187.44,187.42,15.0902]
[1722269282085,5.3348,187.45,187.42,15.0902]
[1722269282285,5.5045,187.46,187.42,15.0902]
[1722269283283,5.5045,187.46,187.39,5.3364]
[1722269284507,5.3348,187.45,187.38,22.531]
[1722269284815,5.5045,187.46,187.38,27.8675]
[1722269285113,5.5045,187.46,187.39,5.3363]
[1722269285915,5.5047,187.46,187.38,16.4747]
[1722269286089,5.5047,187.46,187.39,1.0671941]
[1722269286294,5.5047,187.46,187.38,16.4747]
[1722269286503,5.5047,187.46,187.38,21.8114]
[1722269287088,5.3348,187.45,187.38,21.8114]
[1722269289020,0.17,187.46,187.38,21.8114]
[1722269289207,27.05,187.51,187.39,14.4078458]
[1722269289412,27.05,187.51,187.39,13.3408]
[1722269289712,5.3337,187.49,187.42,18.6744]
[1722269289897,59.12,187.51,187.38,29.8159]
[1722269290092,5.3345,187.46,187.38,35.1523]
[1722269290290,32.3839,187.48,187.41,5.3358]
[1722269290515,27.05,187.48,187.41,5.3358]
[1722269290810,27.05,187.48,187.38,29.8159]
[1722269291111,5.3345,187.46,187.39,5.3364]
[1722269291317,5.5514448,187.51,187.42,16.1167]
[1722269291521,27.05,187.62,187.48,20.0]
[1722269291689,27.05,187.59,187.47,1.06644333]
[1722269292009,5.3322,187.54,187.47,5.3341]
[1722269292516,5.3321,187.55,187.46,34.787]
[1722269292817,32.3816,187.56,187.48,5.3336]
[1722269293020,27.05,187.56,187.49,5.3334]
[1722269293314,32.3816,187.56,187.49,5.3334]
[1722269293485,32.3816,187.56,187.48,5.3338]
[1722269294091,5.3307,187.6,187.49,14.40046042]
[1722269294306,5.3307,187.6,187.5,45.0]
[1722269294502,5.3307,187.6,187.52,5.3327]
[1722269294712,5.3311,187.58,187.51,5.333]
[1722269294939,27.05,187.55,187.46,21.451]
[1722269295219,5.3324,187.54,187.46,21.451]
[1722269296723,5.3325,187.53,187.46,21.451]
[1722269296893,5.3327,187.52,187.47,1.06662392]
[1722269297099,27.22,187.55,187.46,21.4511]
[1722269297320,5.5022,187.54,187.46,21.4511]
[1722269298415,5.3325,187.53,187.46,21.4511]
[1722269298611,0.17,187.54,187.47,1.0666248]
[1722269299120,5.3325,187.53,187.46,16.1167]
[1722269299321,5.3328,187.52,187.46,17.1833776]
[1722269299620,5.3331,187.51,187.46,16.1167]
[1722269299826,27.05,187.52,187.46,16.1167]
[1722269300004,5.3336,187.49,187.42,28.6512]
[1722269300936,27.05,187.49,187.42,15.3123]
[1722269301421,5.3345,187.46,187.42,15.3123]
[1722269302022,0.34,187.48,187.38,15.2923]
[1722269302023,0.17,187.45,187.38,15.2923]
[1722269302231,0.34,187.48,187.39,1.06716472]
[1722269302430,5.3348,187.45,187.39,1.06716472]
[1722269302803,5.335,187.44,187.39,1.06716472]
[1722269303324,5.335,187.44,187.38,16.35946606]
[1722269303631,5.335,187.44,187.38,15.2923]
[1722269303832,5.335,187.44,187.38,16.35946614]
[1722269304132,5.3347,187.45,187.38,20.629]
[1722269305112,5.3347,187.45,187.39,1.06716611]
[1722269305836,5.3351,187.44,187.39,1.06716611]
[1722269306920,5.3353,187.43,187.38,15.2923]
[1722269307458,5.3357,187.42,187.38,15.2923]
[1722269309143,5.335,187.45,187.38,15.2923]
[1722269309342,5.3353,187.43,187.38,15.2923]
[1722269311249,5.3356,187.42,187.38,15.2923]
[1722269311458,5.3353,187.43,187.38,15.2923]
[1722269312535,5.505,187.44,187.38,15.2923]
[1722269312719,32.3845,187.46,187.39,1.06724003]
[1722269312915,5.3348,187.45,187.38,20.6287]
[1722269313222,32.3845,187.46,187.38,20.6287]
[1722269313624,5.3354,187.43,187.38,15.2923]
[1722269314074,5.335,187.44,187.38,15.2923]
[1722269315285,5.3355,187.43,187.38,15.2923]
[1722269315844,0.17,187.45,187.38,15.2923]
[1722269316168,0.34,187.45,187.38,15.2923]
[1722269316464,5.3353,187.43,187.38,15.2923]
[1722269318344,5.335,187.44,187.38,15.2923]
[1722269318961,5.3353,187.43,187.38,15.2923]
[1722269319161,13.56,187.39,187.38,15.2923]
[1722269320967,13.56,187.39,187.34,16.42966824]
[1722269321137,13.56,187.37,187.34,16.42966824]
[1722269321339,13.56,187.39,187.34,16.42966824]
[1722269321750,13.56,187.39,187.36,5.3371]
[1722269322769,13.56,187.39,187.35,1.06728563]
[1722269322978,13.56,187.39,187.34,16.42981122]
[1722269323785,13.56,187.39,187.3,13.56]
[1722269323786,13.56,187.35,187.3,15.5618]
[1722269324081,20.34,187.43,187.31,1.06762429]
[1722269324371,13.56,187.35,187.31,5.3386]
[1722269324548,13.56,187.35,187.32,5.3384]
[1722269325053,13.56,187.35,187.31,5.3384]
[1722269325456,13.56,187.33,187.3,34.2481]
[1722269325660,13.56,187.33,187.3,28.9092]
[1722269325863,13.56,187.33,187.3,34.2479]
[1722269326076,13.56,187.33,187.31,5.3385]
[1722269326371,13.56,187.33,187.3,28.9092]
[1722269326372,13.6788,187.43,187.32,5.3384]
[1722269326546,13.56,187.35,187.32,5.3384]
[1722269328181,13.56,187.35,187.31,5.3386]
[1722269329363,13.56,187.33,187.3,34.2481]
[1722269329561,13.56,187.31,187.3,15.5618]
[1722269331361,13.56,187.31,187.26,35.8131]
[1722269331567,13.56,187.28,187.26,34.6892]
[1722269331771,13.56,187.28,187.26,29.3491]
[1722269332585,13.56,187.28,187.26,34.6891]
[1722269333189,13.56,187.28,187.26,29.3491]
[1722269333777,13.56,187.27,187.26,34.6891]
[1722269334591,13.56,187.27,187.26,15.9993]
[1722269336764,13.56,187.28,187.26,15.9993]
[1722269338890,13.56,187.27,187.23,13.3523]
[1722269339456,13.56,187.27,187.23,18.6931]
[1722269340007,13.56,187.25,187.23,13.3523]
[1722269340967,13.56,187.25,187.22,0.7389492]
[1722269342495,13.56,187.24,187.22,0.7389492]
[1722269343190,5.341,187.23,187.22,0.7389492]
[1722269344482,5.511,187.23,187.22,0.7389492]
[1722269345374,5.681,187.23,187.22,0.7389492]
[1722269345576,19.241,187.23,187.22,0.7389492]
[1722269348204,13.56,187.23,187.22,0.7389492]
[1722269348387,27.12,187.23,187.13,13.359]
[1722269348578,27.12,187.23,187.12,16.5994]
[1722269348579,13.56,187.14,187.12,16.5994]
[1722269349796,13.56,187.13,187.12,16.5994]
[1722269350303,13.56,187.13,187.12,21.9435]
[1722269350498,13.56,187.13,187.12,16.5994]
[1722269350999,13.56,187.13,187.12,5.3441]
[1722269352101,5.3422,187.19,187.12,5.3441]
[1722269352306,38.5849,187.24,187.08,22.6831]
[1722269352307,13.56,187.16,187.14,5.3434]
[1722269352607,13.56,187.15,187.08,36.2431]
[1722269352784,13.56,187.15,187.11,13.3611]
[1722269352992,13.56,187.13,187.12,5.3441]
[1722269353213,13.56,187.14,187.12,5.3441]
[1722269354005,5.56002483,187.23,187.22,5.3413]
[1722269354179,13.56,187.26,187.24,5.3406]
[1722269354381,13.56,187.26,187.25,5.3404]
[1722269354605,13.56,187.26,187.22,13.3532]
[1722269354915,13.56,187.26,187.24,5.3407]
[1722269355082,13.56,187.25,187.17,15.8051]
[1722269355280,5.3401,187.26,187.18,18.698]
[1722269355486,5.3404,187.25,187.18,18.698]
[1722269355886,5.3401,187.26,187.18,18.698]
[1722269356702,27.35,187.27,187.2,5.3416]
[1722269356884,0.17,187.26,187.19,1.06823608]
[1722269357413,27.18,187.3,187.21,13.3536]
[1722269357712,27.18,187.3,187.25,5.3403]
[1722269357907,32.5191,187.3,187.23,13.3518]
[1722269358216,32.5191,187.3,187.24,5.3407]
[1722269358217,27.18,187.3,187.24,5.3407]
[1722269359107,27.18,187.3,187.25,5.3401]
[1722269359421,8.4123827,187.34,187.25,5.3401]
[1722269359422,27.18,187.33,187.25,5.3401]
[1722269359922,27.18,187.33,187.24,5.3406]
[1722269361187,27.18,187.33,187.26,13.35]
[1722269361388,5.3378,187.35,187.28,5.3394]
[1722269361704,5.3379,187.34,187.26,18.6901]
[1722269361906,27.18,187.33,187.25,16.0488]
[1722269362303,5.3387,187.32,187.25,16.0488]
[1722269362605,5.3393,187.3,187.25,16.0488]
[1722269362918,27.18,187.3,187.25,16.0488]
[1722269363097,27.18,187.3,187.26,1.06796219]
[1722269363306,27.18,187.3,187.27,1.06786449]
[1722269363814,5.3385,187.32,187.27,1.06786449]
[1722269364422,5.3385,187.32,187.26,1.06786246]
[1722269364716,5.3385,187.32,187.25,16.0488]
[1722269364717,5.3385,187.32,187.27,1.06786224]
[1722269365503,5.3387,187.31,187.27,1.06786224]
[1722269365712,5.3387,187.31,187.26,1.0678592]
[1722269366015,27.18,187.33,187.27,1.06785843]
[1722269366194,5.3387,187.32,187.27,1.06785843]
[1722269366914,27.18,187.33,187.25,16.0488]
[1722269367216,27.18,187.33,187.26,1.06777895]
[1722269367426,5.3387,187.32,187.27,1.06774597]
[1722269367715,27.18,187.33,187.25,16.0488]
[1722269368594,5.3387,187.31,187.26,1.06785849]
[1722269368789,27.18,187.33,187.27,1.0678461]
[1722269368996,5.3385,187.32,187.27,1.0678461]
[1722269369207,32.73582892,187.36,187.3,5.3389]
[1722269369416,5.3368,187.38,187.31,5.3387]
[1722269369718,19.7385,187.43,187.35,5.3374]
[1722269369719,5.3358,187.42,187.35,5.3374]
[1722269369896,29.26347511,187.44,187.35,5.3374]
[1722269370094,29.26347511,187.44,187.34,13.3444]
[1722269370606,29.26347511,187.44,187.35,1.06734048]
[1722269370607,5.3364,187.4,187.35,1.06734048]
[1722269370803,32.5159,187.41,187.34,5.3378]
[1722269371006,29.26347511,187.44,187.35,6.40481666]
[1722269371210,27.18,187.44,187.36,1.06717518]
[1722269371519,11.95370711,187.47,187.36,1.06717518]
[1722269371520,5.3348,187.45,187.37,5.3368]
[1722269371699,5.335,187.44,187.37,5.3368]
[1722269371899,5.335,187.44,187.38,1.067093]
[1722269372301,5.335,187.44,187.36,50.3372]
[1722269373719,5.335,187.44,187.32,21.434]
[1722269373720,5.3365,187.39,187.32,21.434]
[1722269375097,5.3369,187.38,187.33,1.06732757]
[1722269375800,5.3369,187.38,187.33,1.06743626]
[1722269376618,5.3373,187.36,187.33,1.06743626]
[1722269376820,5.337,187.37,187.32,16.0956]
[1722269377120,5.337,187.37,187.33,1.06743605]